fUST/lending_fUST_20250520
["ID","MTS","AMOUNT","RATE_DAILY","PERIOD"]
[361730465,1747734638348,-134.90055371,0.00016438,2]
[361730466,1747734638358,-396.20675363,0.00016438,2]
[361730467,1747734638380,-33.79324637,0.00016438,2]
[361730468,1747734638390,-430.0,0.00016438,2]
[361730469,1747734638400,-400.0,0.00016438,2]
[361730470,1747734638410,-543.36,0.00016438,2]
[361730471,1747734638420,-400.0,0.00016438,2]
[361730472,1747734638430,-1021.54,0.00016438,2]
[361730473,1747734638440,-400.0,0.00016438,2]
[361730474,1747734638450,-430.0,0.00016438,2]
[361730475,1747734638460,-430.0,0.00016438,2]
[361730476,1747734638470,-430.0,0.00016438,2]
[361730477,1747734638480,-430.0,0.00016438,2]
[361730478,1747734638490,-400.0,0.00016438,2]
[361730479,1747734638500,-400.0,0.00016438,2]
[361730480,1747734638510,-400.0,0.00016438,2]
[361730481,1747734638520,-400.0,0.00016438,2]
[361730482,1747734638530,-400.0,0.00016438,2]
[361730483,1747734638540,-433.77,0.00016438,2]
[361730484,1747734638549,-430.0,0.00016438,2]
[361730485,1747734638560,-430.0,0.00016438,2]
[361730486,1747734638570,-400.0,0.00016438,2]
[361730487,1747734638583,-430.0,0.00016438,2]
[361730488,1747734638594,-400.0,0.00016438,2]
[361730489,1747734638604,-430.0,0.00016438,2]
[361730490,1747734638614,-400.0,0.00016438,2]
[361730491,1747734638625,-400.0,0.00016438,2]
[361730492,1747734638635,-447.24,0.00016438,2]
[361730493,1747734638645,-400.0,0.00016438,2]
[361730494,1747734638655,-430.0,0.00016438,2]
[361730495,1747734638665,-450.0,0.00016438,2]
[361730496,1747734638675,-687.81,0.00016438,2]
[361730497,1747734638685,-596.08,0.00016438,2]
[361730498,1747734638695,-1081.62,0.00016438,2]
[361730499,1747734638704,-430.0,0.00016438,2]
[361730500,1747734638714,-430.0,0.00016438,2]
[361730501,1747734638729,-430.0,0.00016438,2]
[361730502,1747734638739,-430.0,0.00016438,2]
[361730503,1747734638749,-430.0,0.00016438,2]
[361730504,1747734638759,-430.0,0.00016438,2]
[361730505,1747734638769,-430.0,0.00016438,2]
[361730506,1747734638781,-430.0,0.00016438,2]
[361730507,1747734638795,-430.0,0.00016438,2]
[361730508,1747734638809,-503.50449084,0.00016438,2]
[361730509,1747734638825,-430.0,0.00016438,2]
[361730510,1747734638836,-430.0,0.00016438,2]
[361730511,1747734638848,-430.0,0.00016438,2]
[361730512,1747734638862,-442.36,0.00016438,2]
[361730513,1747734638872,-639.11,0.00016438,2]
[361730514,1747734638883,-689.42,0.00016438,2]
[361730515,1747734638894,-712.58,0.00016438,2]
[361730516,1747734638903,-1318.35,0.00016438,2]
[361730517,1747734638913,-430.0,0.00016438,2]
[361730518,1747734638923,-925.24,0.00016438,2]
[361730519,1747734638934,-679.5,0.00016438,2]
[361730520,1747734638944,-497.85,0.00016438,2]
[361730521,1747734638954,-430.0,0.00016438,2]
[361730522,1747734638964,-430.0,0.00016438,2]
[361730523,1747734638973,-1375.83,0.00016438,2]
[361730524,1747734638983,-492.19,0.00016438,2]
[361730525,1747734638994,-430.0,0.00016438,2]
[361730526,1747734639004,-730.98,0.00016438,2]
[361730527,1747734639013,-430.0,0.00016438,2]
[361730528,1747734639023,-430.0,0.00016438,2]
[361730529,1747734639033,-430.0,0.00016438,2]
[361730530,1747734639043,-3516.67,0.00016438,2]
[361730531,1747734639053,-430.0,0.00016438,2]
[361730532,1747734639063,-430.0,0.00016438,2]
[361730533,1747734639074,-3872.3,0.00016438,2]
[361730534,1747734639084,-430.0,0.00016438,2]
[361730535,1747734639094,-792.14,0.00016438,2]
[361730536,1747734639103,-430.0,0.00016438,2]
[361730537,1747734639113,-430.0,0.00016438,2]
[361730538,1747734639122,-1343.36,0.00016438,2]
[361730539,1747734639132,-683.85,0.00016438,2]
[361730540,1747734639142,-430.0,0.00016438,2]
[361730541,1747734639152,-457.60881042,0.00016438,2]
[361730542,1747734639162,-430.0,0.00016438,2]
[361730543,1747734639172,-484.43,0.00016438,2]
[361730544,1747734639182,-625.92,0.00016438,2]
[361730545,1747734639192,-430.0,0.00016438,2]
[361730546,1747734639202,-357.03609032,0.00016438,2]
[361730547,1747734639212,-457.1625648,0.00016438,2]
[361730548,1747734639222,-588.93,0.00016438,2]
[361730549,1747734639232,-570.99,0.00016438,2]
[361730550,1747734639242,-430.0,0.00016438,2]
[361730551,1747734639252,-47.48458947,0.00016438,2]
[361730591,1747734643572,-382.51541053,0.00016438,2]
[361730592,1747734643585,-430.0,0.00016438,2]
[361730593,1747734643595,-430.0,0.00016438,2]
[361730594,1747734643604,-430.0,0.00016438,2]
[361730595,1747734643614,-273.7325193,0.00016712,2]
[361730596,1747734643627,-156.2674807,0.00016712,2]
[361730597,1747734643637,-430.0,0.00016712,2]
[361730598,1747734643646,-430.0,0.00016712,2]
[361730599,1747734643657,-430.0,0.00016712,2]
[361730600,1747734643666,-430.0,0.00016712,2]
[361730601,1747734643676,-268.48385685,0.00016712,2]
[361730602,1747734643686,-430.0,0.00016712,2]
[361730603,1747734643696,-430.0,0.00016712,2]
[361730604,1747734643706,-297.22469508,0.00016712,2]
[361730605,1747734643717,-430.0,0.00016712,2]
[361730606,1747734643726,-430.0,0.00016712,2]
[361730607,1747734643735,-430.0,0.00016712,2]
[361730608,1747734643746,-430.0,0.00016712,2]
[361730609,1747734643755,-430.0,0.00016712,2]
[361730610,1747734643765,-430.0,0.00016712,2]
[361730611,1747734643775,-430.0,0.00016712,2]
[361730612,1747734643785,-430.0,0.00016712,2]
[361730613,1747734643796,-430.0,0.00016712,2]
[361730614,1747734643806,-430.0,0.00016712,2]
[361730615,1747734643816,-430.0,0.00016712,2]
[361730616,1747734643825,-430.0,0.00016712,2]
[361730617,1747734643835,-430.0,0.00016712,2]
[361730618,1747734643845,-454.43,0.00016712,2]
[361730619,1747734643855,-430.0,0.00016712,2]
[361730620,1747734643865,-430.0,0.00016712,2]
[361730621,1747734643875,-430.0,0.00016712,2]
[361730622,1747734643885,-1539.57,0.00016712,2]
[361730623,1747734643895,-455.84,0.00016712,2]
[361730624,1747734643905,-430.0,0.00016712,2]
[361730625,1747734643915,-511.4,0.00016712,2]
[361730626,1747734643925,-1308.31,0.00016712,2]
[361730627,1747734643935,-430.0,0.00016712,2]
[361730628,1747734643946,-430.0,0.00016712,2]
[361730629,1747734643956,-1445.98,0.00016712,2]
[361730630,1747734643966,-974.27,0.00016712,2]
[361730631,1747734643976,-1078.02,0.00016712,2]
[361730632,1747734643986,-2192.26,0.00016712,2]
[361730633,1747734643996,-430.0,0.00016712,2]
[361730634,1747734644005,-594.95,0.00016712,2]
[361730635,1747734644015,-572.18,0.00016712,2]
[361730636,1747734644025,-463.16400934,0.00016712,2]
[361730637,1747734644038,-1355.89599066,0.00016712,2]
[361730638,1747734644047,-832.65,0.00016712,2]
[361730639,1747734644057,-430.0,0.00016712,2]
[361730640,1747734644067,-430.0,0.00016712,2]
[361730641,1747734644077,-815.83,0.00016712,2]
[361730642,1747734644087,-1000.87,0.00016712,2]
[361730643,1747734644097,-430.0,0.00016712,2]
[361730644,1747734644107,-430.0,0.00016712,2]
[361730645,1747734644117,-400.0,0.00016712,2]
[361730646,1747734644126,-543.36,0.00016712,2]
[361730647,1747734644136,-1021.54,0.00016712,2]
[361730648,1747734644146,-430.0,0.00016712,2]
[361730649,1747734644156,-400.0,0.00016712,2]
[361730650,1747734644166,-430.0,0.00016712,2]
[361730651,1747734644176,-450.0,0.00016712,2]
[361730652,1747734644185,-433.77,0.00016712,2]
[361730653,1747734644194,-269.12,0.00016712,2]
[361730654,1747734644204,-430.0,0.00016712,2]
[361730655,1747734644213,-430.0,0.00016712,2]
[361730656,1747734644223,-447.24,0.00016712,2]
[361730657,1747734644233,-400.0,0.00016712,2]
[361730658,1747734644242,-687.81,0.00016712,2]
[361730659,1747734644253,-596.08,0.00016712,2]
[361730660,1747734644263,-1081.62,0.00016712,2]
[361730661,1747734644273,-430.0,0.00016712,2]
[361730662,1747734644283,-430.0,0.00016712,2]
[361730663,1747734644293,-450.0,0.00016712,2]
[361730664,1747734644303,-430.0,0.00016712,2]
[361730665,1747734644313,-430.0,0.00016712,2]
[361730666,1747734644322,-430.0,0.00016712,2]
[361730667,1747734644332,-430.0,0.00016712,2]
[361730668,1747734644343,-430.0,0.00016712,2]
[361730669,1747734644353,-349.7806531,0.00016712,2]
[361730670,1747734644363,-442.36,0.00016712,2]
[361730671,1747734644373,-639.11,0.00016712,2]
[361730672,1747734644383,-689.42,0.00016712,2]
[361730673,1747734644392,-712.58,0.00016712,2]
[361730674,1747734644402,-1318.35,0.00016712,2]
[361730675,1747734644411,-430.0,0.00016712,2]
[361730676,1747734644421,-925.24,0.00016712,2]
[361730677,1747734644431,-679.5,0.00016712,2]
[361730678,1747734644441,-497.85,0.00016712,2]
[361730679,1747734644451,-430.0,0.00016712,2]
[361730680,1747734644460,-430.0,0.00016712,2]
[361730681,1747734644470,-1375.83,0.00016712,2]
[361730682,1747734644480,-492.19,0.00016712,2]
[361730683,1747734644490,-430.0,0.00016712,2]
[361730684,1747734644500,-730.98,0.00016712,2]
[361730685,1747734644510,-430.0,0.00016712,2]
[361730686,1747734644520,-430.0,0.00016712,2]
[361730687,1747734644530,-3516.67,0.00016712,2]
[361730688,1747734644540,-430.0,0.00016712,2]
[361730689,1747734644550,-3872.3,0.00016712,2]
[361730690,1747734644559,-430.0,0.00016712,2]
[361730691,1747734644570,-792.14,0.00016712,2]
[361730692,1747734644583,-1343.36,0.00016712,2]
[361730693,1747734644594,-683.85,0.00016712,2]
[361730694,1747734644603,-430.0,0.00016712,2]
[361730695,1747734644613,-430.0,0.00016712,2]
[361730696,1747734644624,-484.43,0.00016712,2]
[361730697,1747734644634,-625.92,0.00016712,2]
[361730698,1747734644644,-430.0,0.00016712,2]
[361730699,1747734644656,-588.93,0.00016712,2]
[361730700,1747734644666,-570.99,0.00016712,2]
[361730701,1747734644675,-430.0,0.00016712,2]
[361730702,1747734644687,-430.0,0.00016712,2]
[361730703,1747734644696,-430.0,0.00016712,2]
[361730704,1747734644706,-430.0,0.00016712,2]
[361730705,1747734644716,-422.65292303,0.00016871,2]
[361730706,1747734644726,-2656.90777981,0.00016871,2]
[361730710,1747734646640,-9680.89358198,0.00016871,2]
[361730711,1747734646655,-302.86670535,0.00016871,2]
[361730712,1747734646667,-160.0,0.00016871,2]
[361730713,1747734646677,-160.0,0.00016871,2]
[361730714,1747734646686,-160.0,0.00016871,2]
[361730715,1747734646696,-160.0,0.00016871,2]
[361730716,1747734646706,-160.0,0.00016871,2]
[361730717,1747734646715,-311.40751762,0.00016871,2]
[361730718,1747734646725,-212.38718278,0.00016871,2]
[361730719,1747734646735,-160.0,0.00016871,2]
[361730720,1747734646744,-500.0,0.00016985,2]
[361730721,1747734646754,-500.0,0.00016985,2]
[361730722,1747734646765,-256.92421568,0.00016985,2]
[361730723,1747734646774,-500.0,0.00016985,2]
[361730724,1747734646784,-500.0,0.00016985,2]
[361730725,1747734646794,-500.0,0.00016985,2]
[361730726,1747734646806,-500.0,0.00016985,2]
[361730727,1747734646816,-231.23226421,0.00016985,2]
[361730728,1747734646836,-268.76773579,0.00016985,2]
[361730729,1747734646847,-430.0,0.00016986,2]
[361730730,1747734646857,-430.0,0.00016986,2]
[361730731,1747734646867,-430.0,0.00016986,2]
[361730732,1747734646877,-430.0,0.00016986,2]
[361730733,1747734646886,-430.0,0.00016986,2]
[361730734,1747734646896,-430.0,0.00016986,2]
[361730735,1747734646905,-430.0,0.00016986,2]
[361730736,1747734646948,-430.0,0.00016986,2]
[361730737,1747734646958,-430.0,0.00016986,2]
[361730738,1747734646968,-430.0,0.00016986,2]
[361730739,1747734646977,-430.0,0.00016986,2]
[361730740,1747734646986,-430.0,0.00016986,2]
[361730741,1747734646997,-430.0,0.00016986,2]
[361730742,1747734647006,-430.0,0.00016986,2]
[361730743,1747734647016,-430.0,0.00016986,2]
[361730744,1747734647025,-430.0,0.00016986,2]
[361730745,1747734647035,-430.0,0.00016986,2]
[361730746,1747734647044,-430.0,0.00016986,2]
[361730747,1747734647055,-430.0,0.00016986,2]
[361730748,1747734647065,-170.27983001,0.00016986,2]
[361730759,1747734806243,7275.4360559,0.00015932,2]
[361730769,1747735582160,1038.0,0.00024988,30]
[361730770,1747735582829,1038.0,0.00024988,30]
[361730771,1747735586548,1038.0,0.00024988,30]
[361730772,1747735586928,1038.0,0.00024988,30]
[361730773,1747735587279,1038.0,0.00024988,30]
[361730774,1747735587614,1038.0,0.00024988,30]
[361730775,1747735587955,1038.0,0.00024988,30]
[361730776,1747735588298,1038.0,0.00024988,30]
[361730777,1747735588835,1038.0,0.00024988,30]
[361730778,1747735588995,1038.0,0.00024988,30]
[361730779,1747735698278,-166.47953193,0.00013562,2]
[361730780,1747735703776,-133.52046807,0.00013562,2]
[361730781,1747735704313,317.291262,0.00027397,120]
[361730822,1747735838434,-184.343132,0.00013699,2]
[361730823,1747735838449,-300.0,0.0001593,2]
[361730824,1747735838463,-337.15870752,0.00015931,2]
[361730825,1747735838477,-300.0,0.00015931,2]
[361730828,1747735838499,-300.0,0.00015931,2]
[361730829,1747735838511,-300.0,0.00015931,2]
[361730830,1747735838523,-1200.0,0.00015931,2]
[361730831,1747735838537,-15455.8504649,0.00015932,2]
[361730832,1747735838549,-430.0,0.00016438,2]
[361730833,1747735838563,-338.81785682,0.00016438,2]
[361730834,1747735838575,-430.0,0.00016438,2]
[361730835,1747735838588,-430.0,0.00016438,2]
[361730836,1747735838601,-653.2,0.00016438,2]
[361730837,1747735838612,-622.87,0.00016438,2]
[361730838,1747735838626,-430.0,0.00016438,2]
[361730839,1747735838639,-430.0,0.00016438,2]
[361730840,1747735838656,-430.0,0.00016438,2]
[361730841,1747735838668,-263.79703442,0.00016438,2]
[361730842,1747735838682,-515.52022401,0.00016438,2]
[361730843,1747735838693,-430.0,0.00016438,2]
[361730844,1747735838705,-430.0,0.00016438,2]
[361730845,1747735838718,-430.0,0.00016438,2]
[361730846,1747735838730,-430.0,0.00016438,2]
[361730847,1747735838741,-430.0,0.00016438,2]
[361730848,1747735838755,-430.0,0.00016438,2]
[361730849,1747735838768,-430.0,0.00016438,2]
[361730850,1747735838781,-430.0,0.00016438,2]
[361730851,1747735838794,-430.0,0.00016438,2]
[361730852,1747735838805,-430.0,0.00016438,2]
[361730853,1747735838815,-430.0,0.00016438,2]
[361730854,1747735838826,-430.0,0.00016438,2]
[361730855,1747735838838,-430.0,0.00016438,2]
[361730856,1747735838850,-430.0,0.00016438,2]
[361730857,1747735838861,-430.0,0.00016438,2]
[361730858,1747735838874,-430.0,0.00016438,2]
[361730859,1747735838885,-430.0,0.00016438,2]
[361730860,1747735838898,-430.0,0.00016438,2]
[361730861,1747735838911,-430.0,0.00016438,2]
[361730862,1747735838924,-1411.28,0.00016438,2]
[361730863,1747735838937,-430.0,0.00016438,2]
[361730864,1747735838949,-468.79,0.00016438,2]
[361730865,1747735838963,-430.0,0.00016438,2]
[361730866,1747735838976,-430.0,0.00016438,2]
[361730868,1747735838993,-989.6,0.00016438,2]
[361730869,1747735839003,-1393.88,0.00016438,2]
[361730870,1747735839014,-430.0,0.00016438,2]
[361730871,1747735839025,-430.0,0.00016438,2]
[361730872,1747735839037,-430.0,0.00016438,2]
[361730873,1747735839049,-1756.21,0.00016438,2]
[361730874,1747735839063,-430.0,0.00016438,2]
[361730875,1747735839076,-291.87008026,0.00016438,2]
[361730876,1747735839089,-664.8,0.00016438,2]
[361730877,1747735839100,-430.0,0.00016438,2]
[361730878,1747735839111,-525.84,0.00016438,2]
[361730879,1747735839123,-430.0,0.00016438,2]
[361730880,1747735839135,-968.26,0.00016438,2]
[361730881,1747735839147,-430.0,0.00016438,2]
[361730882,1747735839159,-430.0,0.00016438,2]
[361730883,1747735839170,-430.0,0.00016438,2]
[361730884,1747735839181,-1006.1,0.00016438,2]
[361730885,1747735839192,-563.29,0.00016438,2]
[361730886,1747735839202,-1046.28,0.00016438,2]
[361730887,1747735839215,-623.92,0.00016438,2]
[361730888,1747735839226,-623.92,0.00016438,2]
[361730889,1747735839237,-623.92,0.00016438,2]
[361730890,1747735839248,-585.85,0.00016438,2]
[361730891,1747735839264,-430.0,0.00016438,2]
[361730892,1747735839276,-430.0,0.00016438,2]
[361730893,1747735839287,-631.97,0.00016438,2]
[361730894,1747735839299,-430.0,0.00016438,2]
[361730895,1747735839310,-430.0,0.00016438,2]
[361730896,1747735839321,-788.39,0.00016438,2]
[361730897,1747735839334,-848.14,0.00016438,2]
[361730898,1747735839346,-456.36,0.00016438,2]
[361730899,1747735839358,-430.0,0.00016438,2]
[361730900,1747735839369,-1208.49,0.00016438,2]
[361730901,1747735839381,-1261.18,0.00016438,2]
[361730902,1747735839393,-430.0,0.00016438,2]
[361730903,1747735839405,-164.05741723,0.00016438,2]
[361731208,1747735843611,-265.94258277,0.00016438,2]
[361731209,1747735843623,-437.2,0.00016438,2]
[361731210,1747735843634,-451.17,0.00016438,2]
[361731211,1747735843646,-388.61860665,0.00016438,2]
[361731212,1747735843659,-670.07,0.00016438,2]
[361731213,1747735843670,-430.0,0.00016438,2]
[361731214,1747735843681,-430.0,0.00016438,2]
[361731215,1747735843693,-430.0,0.00016438,2]
[361731216,1747735843705,-3549.61,0.00016438,2]
[361731217,1747735843718,-1231.41,0.00016438,2]
[361731218,1747735843730,-626.86,0.00016438,2]
[361731220,1747735843743,-430.0,0.00016438,2]
[361731222,1747735843755,-430.0,0.00016438,2]
[361731224,1747735843767,-600.98,0.00016438,2]
[361731226,1747735843778,-546.41,0.00016438,2]
[361731229,1747735843790,-539.86,0.00016438,2]
[361731231,1747735843801,-430.0,0.00016438,2]
[361731234,1747735843813,-430.0,0.00016438,2]
[361731236,1747735843824,-430.0,0.00016438,2]
[361731238,1747735843835,-430.0,0.00016438,2]
[361731240,1747735843846,-444.06,0.00016438,2]
[361731242,1747735843856,-430.0,0.00016438,2]
[361731244,1747735843865,-1779.29410543,0.00016438,2]
[361731447,1747735846498,-1444.31589457,0.00016438,2]
[361731448,1747735846508,-893.08,0.00016438,2]
[361731449,1747735846519,-410.78967043,0.00016438,2]
[361733094,1747735870376,10000.0,0.00027397,120]
[361733095,1747735887890,6037.0,0.00027397,120]
[361733096,1747736004948,232.0,0.00024988,120]
[361733099,1747736272520,155.76941529,0.00027,120]
[361733100,1747736285124,304.11175118,0.00027,120]
[361733101,1747736456051,-176.61564819,0.00013562,2]
[361733102,1747736457921,-73.52504218,0.00013562,2]
[361733103,1747736641808,194.17,0.0002499,30]
[361733104,1747736678687,202.6,0.0002499,38]
[361733105,1747736752078,200.0,0.0002739,120]
[361733109,1747736795923,834.89,0.00027397,120]
[361733111,1747736869668,237.968446,0.00027397,120]
[361733192,1747737032676,-192.246664,0.00013699,2]
[361733194,1747737032687,-463.1576437,0.00015141,2]
[361733196,1747737032696,-284.5264527,0.00015634,2]
[361733198,1747737032706,-130.96852938,0.00015664,2]
[361733200,1747737032718,-169.03147062,0.00015664,2]
[361733201,1747737032728,-300.0,0.00015665,2]
[361733203,1747737032738,-300.0,0.00015665,2]
[361733205,1747737032748,-300.0,0.00015665,2]
[361733206,1747737032758,-1200.0,0.00015665,2]
[361733208,1747737032768,-11110.1048384,0.00015666,2]
[361733210,1747737032778,-450.47905145,0.00016238,2]
[361733212,1747737032788,-485.28987041,0.00016262,2]
[361733213,1747737032798,-314.81,0.00016323,3]
[361733214,1747737032808,-157.41,0.00016323,3]
[361733215,1747737032818,-472.24,0.00016323,3]
[361733216,1747737032828,-429.75895798,0.00016332,2]
[361733217,1747737032839,-500.0,0.00016332,2]
[361733218,1747737032849,-500.0,0.00016332,2]
[361733219,1747737032859,-500.0,0.00016332,2]
[361733220,1747737032869,-500.0,0.00016332,2]
[361733221,1747737032879,-500.0,0.00016332,2]
[361733222,1747737032890,-500.0,0.00016332,2]
[361733223,1747737032900,-500.0,0.00016332,2]
[361733224,1747737032911,-500.0,0.00016332,2]
[361733225,1747737032922,-500.0,0.00016332,2]
[361733226,1747737032932,-500.0,0.00016332,2]
[361733227,1747737032942,-561.89722279,0.00016332,2]
[361733228,1747737032952,-3.43281854,0.00016332,2]
[361733229,1747737032966,-496.56718146,0.00016332,2]
[361733230,1747737032975,-500.0,0.00016332,2]
[361733231,1747737032985,-500.0,0.00016332,2]
[361733232,1747737032995,-500.0,0.00016332,2]
[361733233,1747737033006,-500.0,0.00016332,2]
[361733234,1747737033015,-500.0,0.00016332,2]
[361733235,1747737033026,-500.0,0.00016332,2]
[361733236,1747737033036,-234.69208,0.00016332,2]
[361733237,1747737033046,-468.24073354,0.00016332,2]
[361733238,1747737033058,-31.75926646,0.00016332,2]
[361733239,1747737033068,-280.05612358,0.00016332,2]
[361733240,1747737033078,-47.52833076,0.00016338,2]
[361733241,1747737033101,-146.94331614,0.00016338,2]
[361733242,1747737033111,-301.36251613,0.00016438,3]
[361733243,1747737033121,-1303.06133442,0.00016438,2]
[361733244,1747737033131,-430.0,0.00016438,2]
[361733245,1747737033142,-430.0,0.00016438,2]
[361733246,1747737033152,-430.0,0.00016438,2]
[361733247,1747737033162,-492.92384644,0.00016438,2]
[361733248,1747737033172,-596.92,0.00016438,2]
[361733249,1747737033182,-430.0,0.00016438,2]
[361733250,1747737033192,-430.0,0.00016438,2]
[361733251,1747737033202,-430.0,0.00016438,2]
[361733252,1747737033212,-312.62278831,0.00016438,2]
[361733253,1747737033221,-430.0,0.00016438,2]
[361733254,1747737033231,-430.0,0.00016438,2]
[361733255,1747737033241,-430.0,0.00016438,2]
[361733256,1747737033251,-430.0,0.00016438,2]
[361733257,1747737033260,-430.0,0.00016438,2]
[361733258,1747737033270,-430.0,0.00016438,2]
[361733259,1747737033280,-430.0,0.00016438,2]
[361733260,1747737033290,-430.0,0.00016438,2]
[361733261,1747737033299,-430.0,0.00016438,2]
[361733262,1747737033310,-430.0,0.00016438,2]
[361733263,1747737033321,-117.11836413,0.00016438,2]
[361733307,1747737176289,-154.538006,0.00013699,2]
[361733308,1747737180431,-16.091994,0.00013699,2]
[361733309,1747737180453,-170.63,0.00013699,2]
[361733310,1747737180476,-86.15698415,0.00013699,2]
[361733311,1747737660904,500.0,0.00013699,2]
[361733312,1747737660926,501.0,0.00013699,2]
[361733313,1747737692234,-414.8162618,0.00013699,2]
[361733314,1747737704883,493.1837382,0.00013699,2]
[361733315,1747737756564,-4506.8162618,0.00013699,2]
[361733316,1747737764596,2000.1,0.00025061,30]
[361733317,1747737764792,573.1837382,0.00013699,2]
[361733318,1747737826490,-2268.0,0.00013699,2]
[361733319,1747737874346,-84.47301585,0.00013699,2]
[361733320,1747737874369,-170.63,0.00013699,2]
[361733321,1747737874390,-20.1535055,0.00013699,2]
[361733322,1747737876057,-150.4764945,0.00013699,2]
[361733323,1747737876078,-22.62058508,0.00013699,2]
[361733324,1747737878761,-148.01259448,0.00013699,2]
[361733325,1747737878786,-58.20438829,0.00013699,2]
[361733326,1747737880612,-138.82663371,0.00013699,2]
[361733327,1747737880637,-52.15321023,0.00015,2]
[361733328,1747737882391,-107.84678977,0.00015,2]
[361733329,1747737882417,-177.38913363,0.00015899,2]
[361733330,1747737885477,-122.61086637,0.00015899,2]
[361733331,1747737885504,-177.38913363,0.00016,2]
[361733332,1747737887179,-303.41701588,0.00016,2]
[361733333,1747737892398,-155.0,0.00016,2]
[361733334,1747737894855,-175.45118724,0.00016,2]
[361733335,1747737896562,-299.94833425,0.0001584,2]
[361733336,1747737898403,-335.04014938,0.0001584,2]
[361733337,1747737899905,-123.42853225,0.0001584,2]
[361733338,1747737899930,-180.14997117,0.00016,2]
[361733339,1747737901587,-8.59269208,0.00016,2]
[361733340,1747737903127,9257.0,0.000123,2]
[361733341,1747737913015,-314.6451405,0.00016095,2]
[361733342,1747737915084,-191.24243794,0.00016095,2]
[361733343,1747737917007,-333.1051772,0.00016095,2]
[361733344,1747737922262,-215.51499047,0.00016095,2]
[361733345,1747737923878,-59.51042818,0.00016095,2]
[361733346,1747737927617,-191.76733118,0.00016258,2]
[361733347,1747737929662,-189.06289489,0.000162,2]
[361733348,1747737931549,-206.76423893,0.000162,2]
[361733349,1747737935769,-308.03846108,0.000162,2]
[361733350,1747737937795,-173.157137,0.000162,2]
[361733351,1747737940621,-164.83253891,0.000162,2]
[361733352,1747737942657,-255.58225956,0.00015409,2]
[361733353,1747737945095,-200.06862657,0.00015409,2]
[361733354,1747737948740,-328.72610313,0.00015409,2]
[361733355,1747737952881,-380.70569851,0.00015409,2]
[361733356,1747737954357,-285.90165442,0.00015409,2]
[361733357,1747737956432,-230.23822979,0.00015409,2]
[361733358,1747737958019,-343.0720146,0.00015409,2]
[361733359,1747737960950,-413.51083107,0.00015409,2]
[361733360,1747737962538,-325.74422915,0.00015409,2]
[361733361,1747737962563,-21.24516738,0.000162,2]
[361733362,1747738012829,-162.22875713,0.00015417,2]
[361733363,1747738016088,-87.77124287,0.00015417,2]
[361733364,1747738016113,-167.18295112,0.00016095,2]
[361733365,1747738018736,-177.90104503,0.00016095,2]
[361733366,1747738021372,-298.1826855,0.00016095,2]
[361733367,1747738023413,-165.8948228,0.00016095,2]
[361733368,1747738025732,-166.94641052,0.00016095,2]
[361733369,1747738027731,-226.91797032,0.00016095,2]
[361733370,1747738029867,-181.0,0.00016095,2]